Cogmind - Beta 15 @@@ ROGUE MODE // 2025.06.28 @ 21:00:49 Player: Arianne Result: Destroyed by G-34 Mercenary with Small Laser Performance ------------- Evolutions (1) 500 Regions Visited (2) 400 Robots Destroyed (16) 80 Value Destroyed (383) 383 Prototype IDs (2) 40 Alien Tech Used (0) 0 Bonus (0) 0 TOTAL SCORE: 1403 Bonus ------- None Cogmind --------- Core Integrity 0/400 Matter 278/300 Energy 160/160 System Corruption 0% Temperature Cool (6) Movement Core (250) Ox4 Location -9/Materials Parts ------- > --- POWER (1) -------- Light Nuclear Core > --- PROPULSION (2) --- (None) > --- UTILITY (2) ------ Small Storage Unit > --- WEAPON (4) ------- Shotgun Mining Claw > --- INVENTORY (8) ---- Light Ion Engine Light Treads Light Treads Aluminum Leg Improved Heat Sink Small Laser Mining Claw Peak State ------------ > --- POWER ------------ Light Ion Engine > --- PROPULSION ------- Aluminum Leg Aluminum Leg > --- UTILITY ---------- Small Storage Unit Terrain Scanner > --- WEAPON ----------- Assault Rifle Assault Rifle Mining Claw Mining Claw > --- INVENTORY -------- Light Ion Engine Light Treads Light Treads EM Pulse Gun [Rating: 9] Favorites ----------- Power Light Ion Engine Engine Light Ion Engine Power Core Light Nuclear Core Propulsion Aluminum Leg Leg Aluminum Leg Utility Small Storage Unit Device Terrain Scanner Storage Small Storage Unit Weapon Assault Rifle Energy Gun EM Pulse Gun Ballistic Gun Assault Rifle Slashing Weapon Mining Claw Special Melee Weapon Datajack Build | -11 -10 -9 ------- Run | Yrd Mat Mat Slots Evolved 2 | . . 2 Power . | . . . Propulsion . | . . . Utility . | . . . Weapon 2 | . . 2 Parts Attached 15 | 6 1 8 Power 2 | 1 . 1 Engine 1 | 1 . . Core 1 | . . 1 Reactor . | . . . Propulsion 4 | 2 . 2 Treads . | . . . Leg 4 | 2 . 2 Wheel . | . . . Hover . | . . . Flight . | . . . Utility 2 | 1 1 . Device 1 | . 1 . Storage 1 | 1 . . Processor . | . . . Hackware . | . . . Protection . | . . . Artifact . | . . . Weapon 7 | 2 . 5 Energy Gun 1 | . . 1 Energy Cannon . | . . . Ballistic Gun 3 | 2 . 1 Ballistic Cannon . | . . . Launcher . | . . . Special Weapon . | . . . Impact Weapon . | . . . Slashing Weapon 2 | . . 2 Piercing Weapon . | . . . Special Melee Weapon 1 | . . 1 Unidentified Prototypes . | . . . Parts Lost 10 | . . 10 Power 1 | . . 1 Propulsion 4 | . . 4 Utility 1 | . . 1 Weapon 4 | . . 4 Highest Loss Streak 7 | . . 7 To Critical Strikes . | . . . Average Backups 5 | 2 5 5 Power 1 | 1 1 1 Propulsion 1 | . 2 2 Utility . | . . . Weapon 2 | 1 2 2 Tool/Special . | . . . Unused Backups 4 | . . 4 Power 1 | . . 1 Propulsion 2 | . . 2 Utility 1 | . . 1 Weapon . | . . . Tool/Special . | . . . Average Slot Usage (%) 85 | . 94 83 Engine 9 | . 14 8 Core 1 | . . 1 Leg 20 | . 28 18 Device 7 | . 8 6 Storage 11 | . 14 11 Energy Gun 6 | . . 7 Ballistic Gun 19 | . 28 17 Slashing Weapon 7 | . . 9 Special Melee Weapon 2 | . . 2 Peak Build Rating 9 | 6 7 9 Average Rating 7 | 3 6 8 On Entrance 4 | . 6 7 Naked Turns . | . . . Heaviest Build 17 | 12 13 17 Greatest Support 20 | 20 20 20 Greatest Overweight (x) 4 | . . 4 Average Overweight (x) . | . . . Largest Inventory Capacity 8 | 8 8 8 Average Capacity 7 | 6 8 8 Most Carried 8 | 5 7 8 Average Carried 5 | 2 5 5 Final Capacity 8 | 8 8 8 Final Carried 7 | 4 6 7 Class Distribution -------------------- 50% | Mutant 47% | Skirmisher Dominant Class ---------------- Mutant | -10/Materials Skirmisher | -9/Materials Resources | -11 -10 -9 ----------- Run | Yrd Mat Mat Matter Collected 508 | 187 53 268 Remotely . | . . . Salvage Created 456 | . 53 403 Parts 41 | . 8 33 Haulers Intercepted . | . . . Recyclers Shooed 1 | . . 1 Parts Field Recycled . | . . . Retrieved Matter . | . . . Parts Self-Destructed . | . . . Prevented . | . . . Kills | -11 -10 -9 ------- Run | Yrd Mat Mat Combat Hostiles Destroyed 14 | . 3 11 Melee 3 | . . 3 Guns 11 | . 3 8 Classes Destroyed 5 | . 1 4 Worker 1 | . . 1 Operator 1 | . . 1 Swarmer 6 | . 3 3 Grunt 7 | . . 7 Sentry 1 | . . 1 Best Kill Streak 8 | . 3 8 Combat Bots Only 7 | . 3 7 Max Kills in Single Turn 1 | . 1 1 Gunslinging . | . . . Exploded . | . . . Melee 1 | . . 1 Uniques/NPCs Destroyed . | . . . Combat | -11 -10 -9 -------- Run | Yrd Mat Mat Hostile Shots Fired 172 | . 32 140 Missed 40 | . 10 30 Hits 132 | . 22 110 Projectile 132 | . 22 110 Damage Taken 1353 | . 168 1185 Core 450 | . 40 410 Absorbed by Shields . | . . . Core Remaining (%) 92 | 100 84 . Volleys Fired 48 | . 10 38 Largest 3 | . 2 3 Hottest 80 | . 40 80 Shots Fired 74 | . 20 54 Gun 74 | . 20 54 Cannon . | . . . Launcher . | . . . Special . | . . . Kinetic 63 | . 20 43 Thermal . | . . . Explosive . | . . . Electromagnetic 11 | . . 11 Robot Hit Streak 9 | . 4 9 Robot Miss Streak 5 | . 5 4 Penetration Max . | . . . Secondary Targets 3 | . 1 2 Max Gunslinging Chain 1 | . 1 1 Shots Hit Robots 54 | . 9 45 Core Hits 25 | . 3 22 Critical Kills . | . . . Critical Parts Destroyed 1 | . 1 . Critical Strikes 1 | . 1 . Destroy 1 | . 1 . Melee Attacks 18 | . . 18 Impact . | . . . Slashing 15 | . . 15 Piercing . | . . . Sneak Attacks 1 | . . 1 Combat Hostiles . | . . . Follow-up Attacks . | . . . Damage Inflicted 809 | . 110 699 Guns 596 | . 110 486 Cannons . | . . . Explosions . | . . . Melee 213 | . . 213 Ramming . | . . . Kinetic 552 | . 110 442 Thermal . | . . . Explosive . | . . . Electromagnetic 44 | . . 44 Impact . | . . . Slashing 213 | . . 213 Piercing . | . . . Highest Corruption . | . . . Average Corruption . | . . . Corruption Purged . | . . . Corruption Blocked . | . . . Overload Shots . | . . . Overflow Damage . | . . . Projectiles . | . . . Explosions . | . . . Melee . | . . . Knockbacks . | . . . Impact . | . . . Kinetic . | . . . Secondary . | . . . Self-Inflicted Damage . | . . . Shots . | . . . Rammed . | . . . Targets Rammed . | . . . Kicked . | . . . Crushed . | . . . Highest Temperature 9 | . . 9 Average Temperature 5 | . . 5 Received Heat Transfer 489 | . 6 483 Siege Activations . | . . . Martial Activations . | . . . Shielding Activations . | . . . Robots Disrupted . | . . . Combat Hostiles . | . . . Robots Corrupted . | . . . Combat Hostiles . | . . . Parts Fried . | . . . Impact Corruptions . | . . . Robots Melted . | . . . Combat Hostiles . | . . . Parts Melted . | . . . Heat Transferred . | . . . Parts Sabotaged . | . . . Parts Stolen . | . . . Parts Stripped . | . . . Power Chain Reactions . | . . . Alert | -11 -10 -9 ------- Run | Yrd Mat Mat Maximum Alert Level . | . . . Low Security (%) 100 | 100 100 100 Level 1 . | . . . Level 2 . | . . . Level 3 . | . . . Level 4 . | . . . Level 5 . | . . . High Security . | . . . Max Security . | . . . Peak Influence 136 | . 60 136 Initial 8 | . . 8 Average 28 | . 20 33 Influence Increases 387 | . 70 317 Destroy 0b10 Robot/C 280 | . 60 220 Destroy 0b10 Robot/NC 10 | . . 10 Destroy Leader 70 | . 10 60 Successful Hack 12 | . . 12 Disable Machine 15 | . . 15 Influence Decreases 297 | . 50 247 Entered New Map 12 | . . 12 Time Decay 195 | . 50 145 Lost Part 90 | . . 90 Squads Dispatched 5 | . . 5 Investigation 2 | . . 2 Extermination . | . . . Reinforcement 3 | . . 3 Assault . | . . . Garrison . | . . . Intercept . | . . . Searches Triggered . | . . . Construction Impeded . | . . . Haulers Reinforced . | . . . Active Scanning Responses . | . . . Cargo Convoy Interrupts . | . . . Stealth | -11 -10 -9 --------- Run | Yrd Mat Mat Distress Signals 1 | . . 1 Communications Jammed . | . . . Distress Signals . | . . . Times Spotted 33 | . 8 25 Peak Tracking Total 10 | . 4 10 Tactical Retreats . | . . . Traps | -11 -10 -9 ------- Run | Yrd Mat Mat Traps Triggered 1 | . . 1 Indirectly . | . . . Trap Hack Attempts . | . . . Triggered . | . . . Disarmed . | . . . Reprogrammed . | . . . Reused . | . . . Traps Extracted . | . . . Installed . | . . . Triggered . | . . . Machines | -11 -10 -9 ---------- Run | Yrd Mat Mat Machines Disabled 1 | . . 1 Max in Single Turn 1 | . . 1 Machines Repaired . | . . . Machines Dismantled . | . . . Machines Sabotaged . | . . . Overloaded Fab Kills . | . . . Hacking | -11 -10 -9 --------- Run | Yrd Mat Mat Machines Accessed 3 | . . 3 Terminals 2 | . . 2 Fabricators . | . . . Repair Stations 1 | . . 1 Recycling Units . | . . . Scanalyzers . | . . . Garrison Access . | . . . Total Hacks 10 | . . 10 Successful 6 | . . 6 Failed 4 | . . 4 Catastrophic 2 | . . 2 Database Lockouts . | . . . Manual . | . . . Terminals 7 | . . 7 Fabricators . | . . . Repair Stations 3 | . . 3 Recycling Units . | . . . Scanalyzers . | . . . Garrison Access . | . . . Terminal Hacks 4 | . . 4 Prototype ID Bank 1 | . . 1 Investigation Status 1 | . . 1 Registered Components 1 | . . 1 Zone Layout 1 | . . 1 Fabricator Hacks . | . . . Repair Station Hacks 2 | . . 2 Scan Component 2 | . . 2 Recycling Unit Hacks . | . . . Scanalyzer . | . . . Garrison Access Hacks . | . . . Unauthorized Hacks . | . . . Terminals . | . . . Fabricators . | . . . Repair Stations . | . . . Recycling Units . | . . . Scanalyzers . | . . . Garrison Access . | . . . Data Cores Recovered 1 | . . 1 Used . | . . . Hacking Detections 3 | . . 3 Full Trace Events 1 | . . 1 Feedback Events . | . . . Feedback Blocked . | . . . Robot Schematics Acquired . | . . . Robots Built . | . . . Authchips . | . . . Time . | . . . Total Robot Build Rating . | . . . Part Schematics Acquired . | . . . Parts Built . | . . . Authchips . | . . . Time . | . . . Total Part Build Rating . | . . . Parts Repaired . | . . . Time . | . . . Parts Recycled . | . . . Recycled Matter . | . . . Retrieved Matter . | . . . Retrieved Components . | . . . Parts Scanalyzed . | . . . Part Schematics Acquired . | . . . Parts Damaged . | . . . Bothacking | -11 -10 -9 ------------ Run | Yrd Mat Mat Used RIF Installer . | . . . Robots Hacked 1 | . . 1 Non-combat . | . . . Combat 1 | . . 1 Robot Hacks Applied 1 | . . 1 parse_system 1 | . . 1 Relay Couplers Released . | . . . Fabnet Peak Effective % . | . . . Robots Rewired . | . . . Allies Hacked . | . . . Hacks Repelled . | . . . Allies | -11 -10 -9 -------- Run | Yrd Mat Mat Total Allies . | . . . Largest Group . | . . . Highest-Rated Group . | . . . Highest-Rated Ally . | . . . Total Orders . | . . . Ally Attacks . | . . . Total Damage . | . . . Kills . | . . . Allies Corrupted . | . . . Allies Melted . | . . . Intel | -11 -10 -9 ------- Run | Yrd Mat Mat Active Infowar (turns) 590 | . 120 470 Terrain 590 | . 120 470 Robot Analysis Total . | . . . Derelict Logs Recovered . | . . . Drone Launches . | . . . Drone Recoveries . | . . . Exploration | -11 -10 -9 ------------- Run | Yrd Mat Mat Turns Passed 1004 | 63 180 761 Spaces Moved 487 | 57 122 308 Core 48 | 28 . 20 Treads . | . . . Legs 439 | 29 122 288 Wheels . | . . . Hover . | . . . Flight . | . . . Fastest Speed 50 | 50 120 120 Average Speed 120 | 85 120 127 Slowest Speed 250 | 120 120 250 Overloaded Moves . | . . . Propulsion Burnouts . | . . . Robots Hopped . | . . . Potential Cave-ins . | . . . Cave-ins Triggered . | . . . Exploration Rate (%) 18 | 3 26 26 Regions Visited 2 Branch Regions . Pre-discovered Areas . | . . . Known Exits Taken . | . . . Unknown Exits Taken 2 | 1 1 . Scrap Searched . | . . . Spaces Dug . | . . . Terrain Destroyed . | . . . Melee . | . . . Projectile . | . . . AOE . | . . . Terrain Rammed . | . . . Walls Destroyed . | . . . Machines Disabled . | . . . Actions | -11 -10 -9 --------- Run | Yrd Mat Mat Total 802 | 70 135 597 Wait 212 | . . 212 Move 485 | 56 121 308 Hop . | . . . Pick Up 19 | 8 3 8 Fast Attach 2 | 2 . . Attach 15 | 4 1 10 Detach 3 | . . 3 Swap . | . . . Drop . | . . . Fire 48 | . 10 38 Melee 18 | . . 18 Ram . | . . . Kick . | . . . Crush . | . . . Escape Stasis . | . . . Rewire . | . . . Trap . | . . . Miscellaneous . | . . . Route ------- -11/Scrapyard -10/Materials -9/Materials History --------- Turn | Location | Event 10 | -11/Scrapyard | Discovered new exit (range 15) 64 | -11/Scrapyard | Entered Materials 232 | -10/Materials | Discovered new exit (range 3) 244 | -10/Materials | Entered another Materials area 244 | -9/Materials | Evolved 2 slots: Weapon x2 553 | -9/Materials | Build established: Skirmisher 829 | -9/Materials | Core integrity fell below 50% 857 | -9/Materials | Lost 7 parts (1p2n4w) 866 | -9/Materials | Core integrity fell below 20% 887 | -9/Materials | Destroyed 7 combat bots 1005 | -9/Materials | Destroyed by G-34 Mercenary with Small Laser Last Messages --------------- reinforcements to Terminal M002. R-06 Scavenger collects Sml. Laser. K-01 Serf collects debris. O-16 Technician: "IFF HANDSHAKE FAILED. SECURING TERMINAL." K-01 Serf collects debris. R-06 Scavenger collects Beam Rifle. W-16 Scout sends out distress signal. ALERT: Hostiles spotted, dispatching reinforcements to Terminal M001. ALERT: Hostiles spotted, dispatching reinforcements to Terminal M004. G-34 Mercenary destroyed. Acquired 32 matter. Acquired Sml. Laser. R-06 Scavenger collects Heat Sink. Acquired 16 matter. Acquired Aluminum Leg. K-01 Serf collects debris. Aluminum Leg destroyed. Map ----- +----------------------------------------------------+ | #????# "" =## ## #?????????????????????? | | +#####/#????# """ =## = ## +?????????????????????? | | """ #????# """" ##=*=## #?????????????????????? | | "T" #?#??# *[##=%[## #?????????????????????? | | #?#??#! ] ##**[## #?????????????????????? | | #????#####/###%=%## #?????????????????????? | | ########????????# #####/## #?????????????????????? | | ##??????????#= [ !=[% *#?????????????????????? | | #???????????#+## [! #?????????????????????? | | " #?????????? ## """ #????????######???????? | | "" ###??????? ## """ #????????# #???????? | | " + ????? ## """ #????????# #???????? | | "" ## ???? ## ########## #???????? | | "" ## ??? + ! + #???????? | | "" ## ??# ########+########## #???????? | | "" ## ??+ #????# #??# #???????? | | "" ## ??# ?????# #??# #???????? | | " ## ?# ?????# "T" #??# #???????? | | ## ??############### = """ #??# #???????? | | ????????????? ##############+####???????? | | ????????????? #??????????? | | ????????????? ##########??????????? | | ????????????????#### k #???????????????????? | | ???????????????????# #???????????????????? | | ?????????????????### * ########????????????? | | ?????????? /k @ = gg g +?????? | | ???????????# k g g #?????? | | ???????????# g T #?????? | | ???????????+ """ """w o ??????? | | ???????????###### """ """ w ??????? | | ????????????????#u """ """ a ???????? | | ?????????????????? ########???????? | | ?????????????????? w ! #??????????????? | | ????????????????? #??????????????? | | ????????????????? ?######### #??????????????? | | ?????????????????## ?????????? #??????????????? | | ??????????????????# ????????????#??????????????? | | ??????????????????# ?????????????????????????????? | | ??????????????????#??????????????????????????????? | | ?????????????????????????????????????????????????? | | ?????????????????????????????????????????????????? | | ?????????????????????????????????????????????????? | | ?????????????????????????????????????????????????? | | ?????????????????????????????????????????????????? | | ?????????????????????????????????????????????????? | | ?????????????????????????????????????????????????? | | ?????????????????????????????????????????????????? | | ?????????????????????????????????????????????????? | | ?????????????????????????????????????????????????? | | ?????????????????????????????????????????????????? | +----------------------------------------------------+ Best States ------------- Heat Dissipation 28 Energy Generation 14 Energy Capacity 160 Matter Stores 300 Matter Capacity 300 Sight Range 16 Terrain Scan Range 14 Terrain Scan Density 10 Evasion (%) 55 Item Schematics ----------------- None Robot Schematics ------------------ None Fabricated ------------ Nothing Repaired ---------- Nothing Alien Tech Used ----------------- None Achievements -------------- None Challenges ------------ None Game ------ Seed SapperCarbideRegenerator Manual? 0 Play Time 00:11:47 Cumulative 8.7 hours Start 2025.06.28 @ 20:51:10 End 2025.06.28 @ 21:00:49 Sessions 1 Manual Loads 0 Difficulty Rogue Special Mode None Game No. 24 Rogue 24 Adventurer 0 Explorer 0 Win Type - Total 0 Types 0/0/0/0/0/0/0/0/0/0 Lore% 10 Gallery% 14 Achievement% 12 Wizard Run 0 Options --------- Layout 1 ASCII 0 Keyboard 0 Movement Arrows Keybinds 0 Fullscreen 1 Font 32/SmallcapsGlow Map View 50x35 Zoom Use 0% Tactical HUD 0 Map Filters NONE Filters NONE Steam 1 RUN: 6dfc861b-2c41-4366-ae3b-1e9b8661276c